{"text_format":"1","workbook":"xlsx","n_sheets":2,"sheets":["Kursus2024","TVET2024"],"not_rendered":{"charts":0,"images":2,"macros":1,"external_links":7,"defined_names":50,"comments":0,"pivot_tables":0},"unopened":[],"bounds":{"document_bytes":16777216,"sheet_cells":100000,"rows_first":2000,"rows_last":500,"rows_between":2000,"halvings":0,"cell_chars":16384,"cell_head_chars":4096},"cells_cut":0,"cells_raw":0,"read":"whole","date_system":"1900"}

{"sheet":"Kursus2024","index":0,"n_rows":10,"n_cols":16,"rows_kept":10,"cut":false,"hidden":false,"merged":[[0,0,0,3],[4,1,7,1],[8,1,9,1]]}
["SENARAI KURSUS YANG AKAN DITAWARKAN DI BAWAH SKIM PENDIDIKAN DAN LATIHAN TEKNIKAL DAN VOKASIONAL BAGI SESI SEPTEMBER/OKTOBER 2024"]
[]
["Bil","Institusi","Kursus yang ditawarkan","Tempoh kursus",null,null,"Kolej Pengajian Siswazah Antarabangsa (KIGS)","Laksamana College of Business (LCB)","Micronet International College (MIC)","Cosmopolitan College of Commerce and Technology (CCCT)","Kemuda Institute (KI)",{"$f":"#REF!","v":{"$error":"#REF!"}},{"$f":"#REF!","v":{"$error":"#REF!"}}]
[1,"Kolej Pengajian Siswazah Antarabangsa (KIGS)","HNTec in Construction and Draughting (Dual TVET)","24 bulan",null,"2\n1","Certificate in Art and Design","City & Guilds 8064-01 Level 2 Diploma in Food Preparation and Culinary Arts","Pearson BTEC Level 1 Introductory Diploma in Information Technology","Pearson BTEC International Level 2 Certificate in Creative Media Production (QCF)","NCC Education Level 3 Diploma in Computing (L3DC)","Certificate III Screen and Media","NCC Education Level 3 Diploma in Computing",null,{"$f":"B4","v":"Kolej Pengajian Siswazah Antarabangsa (KIGS)"},{"$f":"C4","v":"HNTec in Construction and Draughting (Dual TVET)"}]
[2,"Laksamana College of Business (LCB)","C&G Level 3 Advanced Diploma in Culinary Arts and Supervision","18 bulan",null,"2\n1",null,null,null,"Pearson BTEC Level 1 Introductory Diploma in Information Technology (QCF)",null,null,null,null,{"$f":"B5","v":"Laksamana College of Business (LCB)"},{"$f":"C5","v":"C&G Level 3 Advanced Diploma in Culinary Arts and Supervision"}]
[3,null,"C&G Level 2 Diploma in Food Preparation and Culinary Arts","12 bulan",null,"2\n1"]
[4,null,"C&G Level 2 Diploma in Food Preparation and Culinary Arts – Patisserie","12 bulan",null,"2\n1",null,null,null,null,null,null,null,null,{"$f":"O5","v":"Laksamana College of Business (LCB)"},"C&G Level 2 Diploma in Food Preparation and Culinary Arts – Patisserie"]
[5,null,"C&G Level 2 Diploma in Food and Beverage Service","12 bulan",null,"2\n1",null,null,null,null,null,null,null,null,{"$f":"O7","v":"Laksamana College of Business (LCB)"},"C&G Level 2 Diploma in Food and Beverage Service"]
[6,"Cosmopolitan College of Commerce & Technology (CCCT)","NTEC in Hotel & Business Tourisms","24 bulan",null,"2\n1"]
[7,null,"HNTec in Tourisms Operation","24 bulan",null,"2\n1"]

{"sheet":"TVET2024","index":1,"n_rows":232,"n_cols":590,"rows_kept":232,"cut":false,"hidden":false,"merged":[[57,31,57,504],[110,2,110,8],[111,2,111,8],[114,2,114,8],[72,19,72,22],[8,2,8,28],[64,33,64,59],[65,33,65,59],[66,33,66,59],[63,2,63,28],[50,2,50,3],[50,4,50,28],[49,2,49,3],[49,4,49,28],[44,2,44,3],[44,4,44,28],[40,4,40,28],[41,2,41,28],[43,2,43,3],[43,4,43,28],[42,2,42,3],[42,4,42,28],[46,4,46,28],[47,2,47,3],[7,2,7,28],[9,2,9,28],[31,2,33,28],[35,2,35,3],[35,4,35,28],[21,4,21,28],[38,2,38,3],[38,4,38,28],[39,2,39,3],[39,4,39,28],[22,4,22,28],[34,2,34,28],[36,2,36,3],[36,4,36,28],[37,2,37,3],[37,4,37,28],[26,4,26,28],[23,4,24,28],[47,4,47,28],[48,2,48,3],[48,4,48,28],[45,2,45,3],[45,4,45,28],[46,2,46,3],[72,23,72,28],[54,24,61,28],[55,2,56,4],[55,5,56,6],[64,2,64,28],[65,2,65,28],[70,2,70,28],[71,2,71,11],[71,12,71,28],[72,2,72,10],[72,11,72,18],[67,11,67,20],[73,17,73,18],[74,2,74,8],[74,9,74,12],[74,13,74,15],[74,16,74,18],[74,19,74,22],[73,2,73,6],[73,7,73,8],[73,9,73,10],[73,11,73,12],[73,13,73,14],[73,15,73,16],[76,24,76,26],[77,2,77,7],[77,8,77,28],[74,23,74,28],[75,2,75,28],[76,2,76,7],[76,8,76,10],[76,12,76,14],[76,16,76,18],[76,20,76,22],[79,2,81,7],[79,8,79,10],[79,11,79,28],[80,8,80,10],[80,11,80,28],[81,8,81,10],[81,11,81,28],[78,2,78,7],[78,8,78,28],[82,2,82,7],[82,8,82,28],[84,2,84,28],[85,2,85,28],[87,6,87,15],[86,6,86,15],[86,16,86,28],[87,16,87,28],[88,6,88,15],[88,16,88,28],[95,2,95,7],[93,2,93,7],[93,8,93,28],[94,2,94,7],[94,8,94,28],[90,2,90,28],[91,2,91,7],[91,8,91,15],[91,16,91,21],[91,22,91,28],[92,2,92,28],[95,22,95,28],[95,8,95,14],[95,15,95,21],[101,2,101,28],[102,2,102,7],[102,8,102,28],[103,2,103,7],[103,8,103,28],[96,2,96,28],[98,2,98,28],[99,2,99,28],[100,2,100,7],[100,22,100,28],[100,8,100,14],[100,15,100,21],[105,2,105,28],[104,2,104,7],[104,15,104,21],[104,22,104,28],[104,8,104,14],[107,2,108,28],[109,2,109,9],[109,17,109,24],[110,9,110,16],[110,17,110,25],[110,26,110,28],[111,9,111,16],[111,17,111,25],[111,26,111,28],[112,2,112,8],[112,9,112,14],[112,15,112,16],[112,17,113,25],[112,26,113,28],[113,9,113,14],[112,29,113,29],[113,2,113,8],[113,15,113,16],[114,9,114,16],[114,17,116,28],[115,2,115,8],[115,9,115,14],[115,15,115,16],[115,29,116,29],[116,2,116,8],[116,15,116,16],[116,9,116,14],[120,2,121,28],[122,2,124,2],[122,3,124,7],[122,8,124,14],[122,15,124,21],[122,22,124,24],[122,25,123,28],[124,25,124,26],[118,2,119,28],[126,3,126,7],[126,8,126,14],[126,15,126,21],[126,22,126,24],[126,25,126,26],[126,27,126,28],[124,27,124,28],[125,3,125,7],[125,8,125,14],[125,15,125,21],[125,22,125,24],[125,25,125,26],[125,27,125,28],[127,27,127,28],[128,3,128,7],[128,8,128,14],[128,15,128,21],[128,22,128,24],[128,25,128,26],[128,27,128,28],[127,3,127,7],[127,8,127,14],[127,15,127,21],[127,22,127,24],[127,25,127,26],[129,27,129,28],[130,3,130,7],[130,8,130,14],[130,15,130,21],[130,22,130,24],[130,25,130,26],[130,27,130,28],[129,3,129,7],[129,8,129,14],[129,15,129,21],[129,22,129,24],[129,25,129,26],[131,27,131,28],[132,3,132,7],[132,8,132,14],[132,15,132,21],[132,22,132,24],[132,25,132,26],[132,27,132,28],[131,3,131,7],[131,8,131,14],[131,15,131,21],[131,22,131,24],[131,25,131,26],[133,27,133,28],[134,3,134,7],[134,8,134,14],[134,15,134,21],[134,22,134,24],[134,25,134,26],[134,27,134,28],[133,3,133,7],[133,8,133,14],[133,15,133,21],[133,22,133,24],[133,25,133,26],[135,27,135,28],[136,3,136,7],[136,8,136,14],[136,15,136,21],[136,22,136,24],[136,25,136,26],[136,27,136,28],[135,3,135,7],[135,8,135,14],[135,15,135,21],[135,22,135,24],[135,25,135,26],[137,27,137,28],[138,3,138,7],[138,8,138,14],[138,15,138,21],[138,22,138,24],[138,25,138,26],[138,27,138,28],[137,3,137,7],[137,8,137,14],[137,15,137,21],[137,22,137,24],[137,25,137,26],[145,3,145,13],[145,14,145,24],[145,25,145,26],[145,27,145,28],[146,3,146,13],[146,14,146,24],[146,25,146,26],[146,27,146,28],[139,27,139,28],[141,2,142,28],[143,2,144,2],[143,3,144,13],[143,14,144,24],[143,25,143,28],[144,25,144,26],[144,27,144,28],[139,3,139,7],[139,8,139,14],[139,15,139,21],[139,22,139,24],[139,25,139,26],[149,3,149,13],[149,14,149,24],[149,25,149,26],[149,27,149,28],[151,2,152,28],[147,3,147,13],[147,14,147,24],[147,25,147,26],[147,27,147,28],[148,3,148,13],[148,14,148,24],[148,25,148,26],[148,27,148,28],[156,2,156,7],[156,8,156,14],[156,15,156,21],[156,22,156,28],[157,2,157,7],[157,8,157,14],[157,15,157,21],[157,22,157,28],[153,2,155,7],[153,8,155,14],[153,15,155,21],[153,22,153,28],[154,22,154,28],[155,22,155,28],[160,2,160,7],[160,8,160,14],[160,15,160,21],[160,22,160,28],[161,2,161,7],[161,8,161,14],[161,15,161,21],[161,22,161,28],[158,2,158,7],[158,8,158,14],[158,15,158,21],[158,22,158,28],[159,2,159,7],[159,8,159,14],[159,15,159,21],[159,22,159,28],[162,2,162,7],[162,8,162,14],[162,15,162,21],[162,22,162,28],[163,2,163,7],[163,8,163,14],[163,15,163,21],[163,22,163,28],[167,8,167,14],[167,15,167,21],[167,22,167,28],[168,8,168,14],[168,15,168,21],[168,22,168,28],[165,2,168,4],[165,5,165,7],[165,8,165,14],[165,15,165,21],[165,22,165,28],[166,5,166,7],[166,8,166,14],[166,15,166,21],[166,22,166,28],[167,5,167,7],[194,10,194,19],[185,2,185,28],[186,2,186,28],[187,2,187,9],[188,2,188,9],[191,2,191,28],[187,10,187,25],[188,10,188,25],[192,2,192,28],[229,2,230,14],[229,15,233,28],[231,2,231,14],[232,2,233,14],[195,10,195,19],[196,10,196,19],[209,2,209,3],[209,4,209,28],[203,2,203,3],[203,4,203,28],[204,2,204,3],[204,4,204,28],[210,2,210,3],[210,4,210,28],[205,2,205,3],[223,2,223,7],[223,8,223,28],[205,4,205,28],[206,2,206,3],[206,4,206,28],[207,2,207,3],[207,4,207,28],[201,2,201,28],[202,2,202,3],[202,4,202,28],[208,2,208,28],[195,2,195,9],[196,2,196,9],[199,2,199,28],[200,2,200,28],[224,2,224,7],[224,8,224,28],[211,2,211,3],[211,4,211,28],[228,2,228,14],[228,15,228,28],[221,2,221,7],[221,8,221,28],[222,2,222,7],[222,8,222,28],[214,2,214,14],[214,15,214,28],[215,2,215,14],[215,15,215,28],[216,2,216,19],[220,2,220,28],[175,17,175,21],[175,22,175,28],[176,2,176,3],[176,4,176,9],[176,10,176,12],[176,13,176,16],[176,17,176,21],[176,22,176,28],[14,3,15,28],[16,3,17,28],[18,3,19,28],[20,3,20,28],[40,2,40,3],[169,2,169,7],[169,8,169,14],[169,15,169,21],[169,22,169,28],[173,2,173,3],[172,2,172,28],[171,2,171,28],[175,2,175,3],[175,4,175,9],[175,10,175,12],[168,5,168,7],[173,4,173,9],[173,10,173,12],[173,13,173,16],[173,17,173,21],[173,22,173,28],[177,13,177,16],[177,17,177,21],[177,22,177,28],[178,2,178,3],[178,4,178,9],[178,10,178,12],[178,13,178,16],[178,17,178,21],[178,22,178,28],[177,2,177,3],[174,2,174,3],[177,4,177,9],[177,10,177,12],[174,4,174,9],[174,10,174,12],[174,13,174,16],[174,17,174,21],[174,22,174,28],[175,13,175,16],[179,13,179,16],[179,17,179,21],[179,22,179,28],[180,2,180,3],[180,4,180,9],[180,10,180,12],[180,13,180,16],[180,17,180,21],[180,22,180,28],[6,1,6,29],[194,2,194,9],[86,2,86,5],[87,2,87,5],[88,2,88,5],[164,8,164,14],[164,15,164,21],[164,22,164,28],[164,2,164,7],[181,2,181,3],[181,4,181,9],[181,10,181,12],[181,13,181,16],[181,17,181,21],[181,22,181,28],[182,2,182,3],[182,4,182,9],[182,10,182,12],[182,13,182,16],[182,17,182,21],[182,22,182,28],[179,2,179,3],[179,4,179,9],[179,10,179,12],[54,550,54,559],[54,304,54,328],[54,329,54,353],[54,354,54,396],[54,501,54,502],[54,510,54,528],[54,530,54,549],[54,33,54,55],[54,58,54,63],[54,64,54,71],[54,72,54,79],[54,80,54,98],[54,99,54,131],[54,132,54,146]]}
[]
[null,null,"Senarai Semak Borang TVET"]
[]
[]
[]
[]
[]
[null,null,"BORANG PERMOHONAN "]
[null,null,"SKIM PENDIDIKAN DAN LATIHAN TEKNIKAL DAN VOKASIONAL (TVET)"]
[null,null,"DI INSTITUSI PENGAJIAN SWASTA DALAM NEGERI"]
[]
[]
[null,null,null,null,null,null,null,null,null,null,null,null,null,null,null,"PERINGATAN PENTING"]
[]
[null,null,"1.","Borang permohonan ini hendaklah diisikan dengan lengkap, betul dan teratur dan dikembalikan ke Institusi Swasta yang menawarkan program yang dipohonkan tidak lewat dari 22 April 2024."]
[]
[null,null,"2.","Sebelum mengembalikan Borang ini, pemohon dikehendaki untuk menyemak semula dan memastikan semua dokumen-dokumen dalam senarai semak sudah tersedia untuk dilampirkan bersama."]
[]
[null,null,"3.","Sila rujuk Surat Pemberitahuan Kementerian Pendidikan Bilangan 04/2024 untuk mengetahui dengan lebih lanjut mengenai dengan syarat dan peraturan skim ini."]
[]
[null,null,"4.","Borang ini mestilah:"]
[null,null,null,"-","Diisi dalam satu salinan sahaja;"]
[null,null,null,"-","Disertakan dengan satu (1) keping gambar terkini yang berukuran paspot;"]
[null,null,null,"-","Disertakan dengan dokumen-dokumen yang diperlukan dan hendaklah dihantar ke Institusi Swasta yang menawarkan program yang dipohonkan;\n"]
[null,null,null,"      "]
[]
[null,null,null,"-","Diemel softcopy (dalam format file versi Excel [.xlsm]) ke emel institusi yang dipohonkan. "]
[null,null,null,null,"-","Kolej Pengajian Siswazah Antarabangsa (KIGS) : registrar@igsbrunei.edu.bn; "]
[null,null,null,null,"-","Laksamana College of Business (LCB) : tvetapplication@laksamanacollege.edu.bn; "]
[null,null,null,null,"-","Cosmopolitan College of Commerce & Technology (CCCT) :  tvet@ccct.edu.bn"]
[]
[null,null,"SENARAI SEMAK SALINAN (Sila tandakan ✓):\nSila pastikan semua dokumen dan salinan disertakan sebelum mengembalikan borang ini ke Institusi Swasta yang menawarkan program yang dipohonkan."]
[]
[]
[null,null,"Bagi Pemohon :"]
[null,null,null,null,"Borang permohonan TVET (borang boleh dimuat turun dari laman web Kementerian Pendidikan, www.moe.gov.bn atau boleh didapati dari di Institusi-Institusi Swasta yang menawarkan program yang dipohonkan.",null,null,null,null,null,null,null,null,null,null,null,null,null,null,null,null,null,null,null,null,null,null,null,null,null,"3\n2\n1"]
[null,null,null,null,"Salinan sijil surat beranak",null,null,null,null,null,null,null,null,null,null,null,null,null,null,null,null,null,null,null,null,null,null,null,null,null,"2\n1"]
[null,null,null,null,"Salinan kad pengenalan",null,null,null,null,null,null,null,null,null,null,null,null,null,null,null,null,null,null,null,null,null,null,null,null,null,"2\n1"]
[null,null,null,null,"Sijil peringkat ‘O’ (BGCE / IGCSE)",null,null,null,null,null,null,null,null,null,null,null,null,null,null,null,null,null,null,null,null,null,null,null,null,null,"2\n1"]
[null,null,null,null,"Sijil peringkat Teknikal dan Vokasional",null,null,null,null,null,null,null,null,null,null,null,null,null,null,null,null,null,null,null,null,null,null,null,null,null,"2\n1"]
[null,null,null,null,"Salinan sijil nikah / perkahwinan (jika berkenaan)",null,null,null,null,null,null,null,null,null,null,null,null,null,null,null,null,null,null,null,null,null,null,null,null,null,"2\n1"]
[null,null,"Bagi Ibu / Bapa / Penjaga / Suami / Isteri Pemohon :"]
[null,null,null,null,"Salinan kad pengenalan pintar ibu / bapa / penjaga / suami / isteri",null,null,null,null,null,null,null,null,null,null,null,null,null,null,null,null,null,null,null,null,null,null,null,null,null,"2\n1"]
[null,null,null,null,"Salinan sijil cerai (jika berkenaan)",null,null,null,null,null,null,null,null,null,null,null,null,null,null,null,null,null,null,null,null,null,null,null,null,null,"2\n1"]
[null,null,null,null,"Salinan sijil kematian (jika berkenaan)",null,null,null,null,null,null,null,null,null,null,null,null,null,null,null,null,null,null,null,null,null,null,null,null,null,"2\n1"]
[null,null,null,null,null,null,null,null,null,null,null,null,null,null,null,null,null,null,null,null,null,null,null,null,null,null,null,null,null,null,"2\n1"]
[null,null,null,null,null,null,null,null,null,null,null,null,null,null,null,null,null,null,null,null,null,null,null,null,null,null,null,null,null,null,"2\n1"]
[null,null,null,null,null,null,null,null,null,null,null,null,null,null,null,null,null,null,null,null,null,null,null,null,null,null,null,null,null,null,"2\n1"]
[null,null,null,null,null,null,null,null,null,null,null,null,null,null,null,null,null,null,null,null,null,null,null,null,null,null,null,null,null,null,"2\n1"]
[]
[]
[]
[null,null,null,null,null,null,null,null,null,null,null,null,null,null,null,null,null,null,null,null,null,null,null,null,null,null,null,null,null,null,null,null,null,null,null,null,null,null,null,null,null,null,null,null,null,null,null,null,null,null,null,null,null,null,null,null,null,null,null,null,null,null,null,null,null,null,null,null,null,null,null,null,null,null,null,null,null,null,null,null,null,null,null,null,null,null,null,null,null,null,null,null,null,null,null,null,null,null,null,null,null,null,null,null,null,null,null,null,null,null,null,null,null,null,null,null,null,null,null,null,null,null,null,null,null,null,null,null,null,null,null,null,null,null,null,null,null,null,null,null,null,null,null,null,null,null,null,null,null,null,null,null,null,null,null,null,null,null,null,null,null,null,null,null,null,null,null,null,null,null,null,null,null,null,null,null,null,null,null,null,null,null,null,null,null,null,null,null,null,null,null,null,null,null,null,null,null,null,null,null,null,null,null,null,null,null,null,null,null,null,null,null,null,null,null,null,null,null,null,null,null,null,null,null,null,null,null,null,null,null,null,null,null,null,null,null,null,null,null,null,null,null,null,null,null,null,null,null,null,null,null,null,null,null,null,null,null,null,null,null,null,null,null,null,null,null,null,null,null,null,null,null,null,null,null,null,null,null,null,null,null,null,null,null,null,null,null,null,null,null,null,null,null,null,null,null,null,null,null,null,null,null,null,null,null,null,null,null,null,null,null,null,null,null,null,null,null,null,null,null,null,null,null,null,null,null,null,null,null,null,null,null,null,null,null,null,null,null,null,null,null,null,null,null,null,null,null,null,null,null,null,null,null,null,null,null,null,null,null,null,null,null,null,null,null,null,null,null,null,null,null,null,null,null,null,null,null,null,null,null,null,null,null,null,null,null,null,null,null,null,null,null,null,null,null,null,null,null,null,null,null,null,null,null,null,null,null,null,null,null,null,null,null,null,null,null,null,null,null,null,null,null,null,null,null,null,null,null,null,null,null,null,null,null,null,null,null,null,null,null,null,null,null,null,null,null,null,null,null,null,null,null,null,null,null,null,null,null,null,null,null,null,null,null,null,null,null,null,null,null,null,null,null,null,null,null,null,null,null,null,null,null,null,null,null,null,null,null,null,null,null,null,null,null,null,null,null,null,null,null,null,null,null,null,"x"]
[null,null,"Borang TVET"]
[null,null,null,null,null,null,null,null,null,null,null,null,null,null,null,null,null,null,null,null,null,null,null,null,"[sila lekatkan gambar berukuran paspot di ruang ini]",null,null,null,null,null,null,null,null,{"$f":"C71","v":"1.  MAKLUMAT PERIBADI"},null,null,null,null,null,null,null,null,null,null,null,null,null,null,null,null,null,null,null,null,null,null,null,null,{"$f":"C85","v":"2.  KURSUS YANG DIPOHON/ DIIKUTI"},null,null,null,null,null,{"$f":"C91","v":"A.  Adakah Awda Sedang Menuntut Di Institusi Pengajian Swasta Secara Persendirian?"},null,null,null,null,null,null,null,{"$f":"BU56","v":"B.  Adakah Awda Sedang Menuntut Di Institusi Kerajaan Pada Masa Ini? "},null,null,null,null,null,null,null,{"$f":"CC56","v":0},null,null,null,null,null,null,null,null,null,null,null,null,null,null,null,null,null,null,{"$f":"CV56","v":0},null,null,null,null,null,null,null,null,null,null,null,null,null,null,null,null,null,null,null,null,null,null,null,null,null,null,null,null,null,null,null,null,{"$f":"EC56","v":"C.  Adakah Awda Sedang Bekerja Pada Masa Ini? (Jika Berkenaan) "},null,null,null,null,null,null,null,null,null,null,null,null,null,null,{"$f":"ER56","v":"Brunei-Cambridge GCE 'O' Level / IGCSE"},null,null,null,null,null,null,null,null,null,null,null,null,null,null,null,null,null,null,null,null,null,null,null,null,null,null,null,null,null,null,null,null,null,null,null,null,null,null,null,null,null,null,null,null,null,null,null,null,null,null,null,null,null,null,null,null,null,null,null,null,null,null,null,null,null,null,null,null,null,null,null,null,null,null,null,null,null,null,null,null,null,null,null,null,null,null,null,null,null,null,null,null,null,null,null,null,null,null,null,null,null,null,null,null,null,{"$f":"IT56","v":"Diploma / Lain-Lain Sijil Kelayakan atau Kelulusan (jika ada)"},null,null,null,null,null,null,null,null,null,null,null,null,null,null,null,null,null,null,null,null,null,null,null,null,null,{"$f":"JT56","v":"BAPA"},null,null,null,null,null,null,null,null,null,null,null,null,null,null,null,null,null,null,null,null,null,null,null,null,{"$f":"KS56","v":"IBU"},null,null,null,null,null,null,null,null,null,null,null,null,null,null,null,null,null,null,null,null,null,null,null,null,{"$f":"LR57","v":0},null,null,null,null,null,null,null,null,null,null,null,null,null,null,null,null,null,null,null,null,null,null,null,null,null,null,null,null,null,null,null,null,null,null,null,null,null,null,null,null,null,null,null,null,null,null,null,null,null,null,null,null,null,null,null,null,null,null,null,null,null,null,null,null,null,null,null,{"$f":"OH56","v":"5. KETERANGAN TANGGUNGAN IBU BAPA / PENJAGA PEMOHON"},null,null,null,null,null,null,null,null,null,null,null,null,null,null,null,null,null,null,null,null,null,null,null,null,null,null,null,null,null,null,null,null,null,null,null,null,null,null,null,null,null,null,null,null,null,null,null,null,null,null,null,null,null,null,null,null,null,null,null,null,null,null,null,null,null,null,null,null,null,null,null,null,null,null,null,null,null,null,null,null,null,null,null,null,null,null,null,null,null,null,null,null,null,null,null,null,null,null,null,null,null,null,null,null,null,null,"xxx",null,null,null,null,null,"D.  Pernahkah Awda Memohon Biasiswa Lain Atau Elaun Pelajaran? ",null,null,null,null,null,null,null,null,null,null,null,null,null,null,null,null,null,null,null,"Brunei-Cambridge GCE 'O' Level / IGCSE",null,null,null,null,null,null,null,null,null,null,null,null,null,null,null,null,null,null,null,"Diploma / Lain-Lain Sijil Kelayakan atau Kelulusan (jika ada)"]
[null,null,"TVET/2024",null,null,null,null,null,null,null,null,null,null,null,null,null,null,null,null,null,null,null,null,null,null,null,null,null,null,null,null,{"$f":"C56","v":"TVET/2024"},{"$f":"J68","v":0},{"$f":"C72","v":"Nama Pemohon\n[Mengikut Kad Pintar]"},{"$f":"C73","v":"Nombor Kad Pintar "},{"$f":"T73","v":"Warna "},{"$f":"C74","v":"Tarikh Lahir "},{"$f":"H74","v":"Hari"},{"$f":"L74","v":"Bulan"},{"$f":"P74","v":"Tahun"},{"$f":"C75","v":"Bangsa\n[Seperti dalam Kad Pintar]"},{"$f":"N75","v":"Jantina "},{"$f":"T75","v":"Ugama "},{"$f":"C77","v":"Taraf Kelamin"},{"$f":"I77","v":"Bujang"},{"$f":"M77","v":"Kahwin"},{"$f":"Q77","v":"Bercerai"},{"$f":"U77","v":"Duda"},{"$f":"Y77","v":"Balu"},{"$f":"C78","v":"Alamat Tempat Tinggal"},{"$f":"C79","v":"Poskod"},{"$f":"C80","v":"Nombor Telefon"},{"$f":"I80","v":"Rumah"},{"$f":"I81","v":"Pejabat"},{"$f":"I82","v":"Bimbit"},{"$f":"C83","v":"Emel"},null,null,{"$f":"C88","v":"Pertama"},{"$f":"G87","v":"Nama Institusi"},{"$f":"Q87","v":"Nama Kursus"},{"$f":"C89","v":"Kedua"},{"$f":"G87","v":"Nama Institusi"},{"$f":"Q87","v":"Nama Kursus"},{"$f":"C91","v":"A.  Adakah Awda Sedang Menuntut Di Institusi Pengajian Swasta Secara Persendirian?"},{"$f":"C92","v":"Ya"},{"$f":"Q92","v":"Tidak"},{"$f":"C93","v":"Jika Ya, Sila Isikan Ruangan Kosong Di Bawah:"},{"$f":"C94","v":"Nama Institusi"},{"$f":"C95","v":"Nama Kursus "},{"$f":"C96","v":"Tarikh Mula Pengajian "},{"$f":"#REF!","v":{"$error":"#REF!"}},{"$f":"C99","v":"B.  Adakah Awda Sedang Menuntut Di Institusi Kerajaan Pada Masa Ini? "},{"$f":"C101","v":"Ya"},{"$f":"Q101","v":0},{"$f":"C102","v":"Jika Ya, Sila Isikan Ruangan Kosong Di Bawah:"},{"$f":"C103","v":"Nama Institusi"},{"$f":"C104","v":"Nama Kursus "},{"$f":"C105","v":"Tarikh Mula Pengajian "},{"$f":"P105","v":"Tarikh Tamat Pengajian "},null,null,null,null,null,null,null,null,null,null,null,null,null,null,null,null,null,null,null,null,null,null,null,null,null,null,null,null,null,null,null,null,null,null,null,null,null,null,null,null,null,null,null,null,null,null,null,null,null,null,null,null,{"$f":"C108","v":"C.  Adakah Awda Sedang Bekerja Pada Masa Ini? (Jika Berkenaan) "},{"$f":"C110","v":"Jika Ya, Sila Isikan Di Bawah:"},{"$f":"C111","v":"a) Nama Jawatan Sekarang:"},{"$f":"C112","v":"b) Tarikh Mula Bekerja:"},{"$f":"C113","v":"c) Tempoh Pekerjaan:"},{"$f":"J113","v":"i. Kurang Dari 1 Tahun:"},{"$f":"J114","v":"ii.Lebih Dari 1 Tahun:"},{"$f":"C115","v":"d) Tempat Bekerja:"},{"$f":"C116","v":"e) Status Pekerjaan:"},{"$f":"J116","v":"i.  Sepenuh Masa:"},{"$f":"J117","v":"ii. Separuh Masa:"},{"$f":"R110","v":"Jika Tidak, Sila (✓):"},{"$f":"R111","v":"a) Adakah Awda Sedang Cuti Tanpa Gaji?"},{"$f":"R112","v":"b) Adakah Awda Cuti Secara Bergaji?"},{"$f":"R113","v":"c) Tidak Mempunyai Sebarang Pekerjaan?"},{"$f":"C121","v":"Brunei-Cambridge GCE 'O' Level / IGCSE"},"Bil","Nama Sekolah","Nama Peperiksaan","Mata pelajaran","Gred","Bulan","Tahun","Bil","Nama Sekolah","Nama Peperiksaan","Mata pelajaran","Gred","Bulan","Tahun","Bil","Nama Sekolah","Nama Peperiksaan","Mata pelajaran","Gred","Bulan","Tahun","Bil","Nama Sekolah","Nama Peperiksaan","Mata pelajaran","Gred","Bulan","Tahun","Bil","Nama Sekolah","Nama Peperiksaan","Mata pelajaran","Gred","Bulan","Tahun","Bil","Nama Sekolah","Nama Peperiksaan","Mata pelajaran","Gred","Bulan","Tahun","Bil","Nama Sekolah","Nama Peperiksaan","Mata pelajaran","Gred","Bulan","Tahun","Bil","Nama Sekolah","Nama Peperiksaan","Mata pelajaran","Gred","Bulan","Tahun","Bil","Nama Sekolah","Nama Peperiksaan","Mata pelajaran","Gred","Bulan","Tahun","Bil","Nama Sekolah","Nama Peperiksaan","Mata pelajaran","Gred","Bulan","Tahun","Bil","Nama Sekolah","Nama Peperiksaan","Mata pelajaran","Gred","Bulan","Tahun","Bil","Nama Sekolah","Nama Peperiksaan","Mata pelajaran","Gred","Bulan","Tahun","Bil","Nama Sekolah","Nama Peperiksaan","Mata pelajaran","Gred","Bulan","Tahun","Bil","Nama Sekolah","Nama Peperiksaan","Mata pelajaran","Gred","Bulan","Tahun","Bil","Nama Sekolah","Nama Peperiksaan","Mata pelajaran","Gred","Bulan","Tahun",{"$f":"C142","v":"Diploma / Lain-Lain Sijil Kelayakan atau Kelulusan (jika ada)"},{"$f":"C144","v":"Bil"},{"$f":"D144","v":"Sijil Diperolehi"},{"$f":"O144","v":"Keputusan"},{"$f":"Z145","v":"Bulan"},{"$f":"AB145","v":"Tahun"},"Bil","Sijil Diperolehi","Keputusan","Bulan","Tahun","Bil","Sijil Diperolehi","Keputusan","Bulan","Tahun","Bil","Sijil Diperolehi","Keputusan","Bulan","Tahun","Bil","Sijil Diperolehi","Keputusan","Bulan","Tahun",{"$f":"I154","v":"BAPA"},{"$f":"C157","v":"Nama"},{"$f":"C158","v":"Nombor Kad Pintar"},{"$f":"C159","v":"Warna/Jenis Kad Pintar"},{"$f":"C160","v":"Alamat Tempat Tinggal (sewa persendirian / kerajaan atau keluarga)"},{"$f":"C161","v":"Pekerjaan"},{"$f":"C162","v":"Alamat Pejabat"},{"$f":"C163","v":"Nama Majikan"},{"$f":"C164","v":"Gaji (bulanan)"},{"$f":"C165","v":"Pendapatan lain (sewa rumah / pemberian nafkah / perniagaan dll)"},"Sila tandakan (x) jika berkenaan serta jumlah yang diterima:","Pencen Perkhidmatan",null,"Pencen Turunan",null,"Pencen Tua",null,"Elaun Kurang Upaya",null,{"$f":"C166","v":"Nombor Telefon"},{"$f":"F166","v":"Rumah"},{"$f":"F167","v":"Bimbit"},{"$f":"F168","v":"Pejabat"},{"$f":"F169","v":"E-mel"},{"$f":"C170","v":"Tahun Meninggal\n(jika berkenaan)"},{"$f":"P154","v":"IBU"},"Nama","Nombor Kad Pintar","Warna/Jenis Kad Pintar","Alamat Tempat Tinggal (sewa persendirian / kerajaan atau keluarga)","Pekerjaan","Alamat Pejabat","Nama Majikan","Gaji (bulanan)","Pendapatan lain (sewa rumah / pemberian nafkah / perniagaan dll)","Sila tandakan (x) jika berkenaan serta jumlah yang diterima:","Pencen Perkhidmatan",null,"Pencen Turunan",null,"Pencen Tua",null,"Elaun Kurang Upaya",null,"Nombor Telefon","Rumah","Bimbit","Pejabat","E-mel","Tahun Meninggal\n(jika berkenaan)",{"$f":"W155","v":"Hubungan dengan pemohon :"},"Nama","Nombor Kad Pintar","Warna/Jenis Kad Pintar","Alamat Tempat Tinggal (sewa persendirian / kerajaan atau keluarga)","Pekerjaan","Alamat Pejabat","Nama Majikan","Gaji (bulanan)","Pendapatan lain (sewa rumah / pemberian nafkah / perniagaan dll)","Sila tandakan (x) jika berkenaan serta jumlah yang diterima:","Pencen Perkhidmatan",null,"Pencen Turunan",null,"Pencen Tua",null,"Elaun Kurang Upaya",null,"Nombor Telefon","Rumah","Bimbit","Pejabat","E-mel","Tahun Meninggal\n(jika berkenaan)",{"$f":"#REF!","v":{"$error":"#REF!"}},"BIL","JENIS BANTUAN","TAHUN MENERIMA","JUMLAH","PENGESAHAN \n(NAMA / JAWATAN)","COP","BIL","JENIS BANTUAN","TAHUN MENERIMA","JUMLAH","PENGESAHAN \n(NAMA / JAWATAN)","COP","BIL","JENIS BANTUAN","TAHUN MENERIMA","JUMLAH","PENGESAHAN \n(NAMA / JAWATAN)","COP","BIL","JENIS BANTUAN","TAHUN MENERIMA","JUMLAH","PENGESAHAN \n(NAMA / JAWATAN)","COP","BIL","JENIS BANTUAN","TAHUN MENERIMA","JUMLAH","PENGESAHAN \n(NAMA / JAWATAN)","COP","BIL","JENIS BANTUAN","TAHUN MENERIMA","JUMLAH","PENGESAHAN \n(NAMA / JAWATAN)","COP","BIL","JENIS BANTUAN","TAHUN MENERIMA","JUMLAH","PENGESAHAN \n(NAMA / JAWATAN)","COP",{"$f":"C172","v":"5. KETERANGAN TANGGUNGAN IBU BAPA / PENJAGA PEMOHON"},"BIL","NAMA","TARIKH LAHIR","HUBUNGAN","MASIH BERSEKOLAH / SUDAH BEKERJA","NAMA SEKOLAH / TEMPAT BEKERJA","BIL","NAMA","TARIKH LAHIR","HUBUNGAN","MASIH BERSEKOLAH / SUDAH BEKERJA","NAMA SEKOLAH / TEMPAT BEKERJA","BIL","NAMA","TARIKH LAHIR","HUBUNGAN","MASIH BERSEKOLAH / SUDAH BEKERJA","NAMA SEKOLAH / TEMPAT BEKERJA","BIL","NAMA","TARIKH LAHIR","HUBUNGAN","MASIH BERSEKOLAH / SUDAH BEKERJA","NAMA SEKOLAH / TEMPAT BEKERJA","BIL","NAMA","TARIKH LAHIR","HUBUNGAN","MASIH BERSEKOLAH / SUDAH BEKERJA","NAMA SEKOLAH / TEMPAT BEKERJA","BIL","NAMA","TARIKH LAHIR","HUBUNGAN","MASIH BERSEKOLAH / SUDAH BEKERJA","NAMA SEKOLAH / TEMPAT BEKERJA","BIL","NAMA","TARIKH LAHIR","HUBUNGAN","MASIH BERSEKOLAH / SUDAH BEKERJA","NAMA SEKOLAH / TEMPAT BEKERJA","BIL","NAMA","TARIKH LAHIR","HUBUNGAN","MASIH BERSEKOLAH / SUDAH BEKERJA","NAMA SEKOLAH / TEMPAT BEKERJA","BIL","NAMA","TARIKH LAHIR","HUBUNGAN","MASIH BERSEKOLAH / SUDAH BEKERJA","NAMA SEKOLAH / TEMPAT BEKERJA","BIL","NAMA","TARIKH LAHIR","HUBUNGAN","MASIH BERSEKOLAH / SUDAH BEKERJA","NAMA SEKOLAH / TEMPAT BEKERJA","7. KETERANGAN PERBELANJAAN BULANAN  IBU BAPA / PENJAGA PEMOHON","BIL","JENIS","JUMLAH SEBULAN","BIL","JENIS","JUMLAH SEBULAN","BIL","JENIS","JUMLAH SEBULAN","BIL","JENIS","JUMLAH SEBULAN","BIL","JENIS","JUMLAH SEBULAN","BIL","JENIS","JUMLAH SEBULAN","BIL","JENIS","JUMLAH SEBULAN","BIL","JENIS","JUMLAH SEBULAN","BIL","JENIS","JUMLAH SEBULAN","BIL","JENIS","JUMLAH SEBULAN","BIL","JENIS","JUMLAH SEBULAN","BIL","JENIS","JUMLAH SEBULAN","BIL","JENIS","JUMLAH SEBULAN","BIL","JENIS","JUMLAH SEBULAN",{"$f":"C188","v":"Tandatangan Pemohon :"},{"$f":"C189","v":"Tarikh :"},null,"xxx",null,null,{"$f":"C74","v":"Tarikh Lahir "},"Taraf Kelamin",null,null,null,null,null,null,null,null,null,null,null,"Jenis Biasiswa Yang Sudah Dipohonkan","Dari","Bulan \n(Month)","Tahun \n(Year)",null,"Hingga","Bulan \n(Month)","Tahun \n(Year)",null,null,"Tarikh Diperolehi","Tarikh Diperolehi","Tarikh Diperolehi","Tarikh Diperolehi","Tarikh Diperolehi","Tarikh Diperolehi","Tarikh Diperolehi","Tarikh Diperolehi","Tarikh Diperolehi","Tarikh Diperolehi","Tarikh Diperolehi","Tarikh Diperolehi","Tarikh Diperolehi","Tarikh Diperolehi","Tarikh Diperolehi","Matapelajaran (Subject)","Gred","Bulan (Month)","Tahun (Year)","Tarikh Diperolehi (Date Obtained)","Tarikh Diperolehi","Tarikh Diperolehi","Tarikh Diperolehi","Tarikh Diperolehi","Tarikh Diperolehi","Sijil Diperolehi\n(Certificate Obtained)","Keputusan\n(Result)","Bulan \n(Month)","Tahun \n(Year)","Tarikh Diperolehi (Date Obtained)"]
[null,null,null,null,null,null,null,null,null,null,null,null,null,null,null,null,null,null,null,null,null,null,null,null,null,null,null,null,null,null,null,{"$f":"F56","v":0},{"$f":"L68","v":"SEPTEMBER / OKTOBER 2024"},{"$f":"M72","v":0},{"$f":"L73","v":0},{"$f":"X73","v":0},"^^^",{"$f":"J74","v":0},{"$f":"N74","v":0},{"$f":"R74","v":0},{"$f":"J75","v":0},{"$f":"Q75","v":0},{"$f":"X75","v":0},"^^^",{"$f":"L77","v":0},{"$f":"P77","v":0},{"$f":"T77","v":0},{"$f":"X77","v":0},{"$f":"AB77","v":0},{"$f":"I78","v":0},{"$f":"I79","v":0},"^^^",{"$f":"L80","v":0},{"$f":"L81","v":0},{"$f":"L82","v":0},{"$f":"I83","v":0},null,null,"^^^",{"$f":"G88","v":0},{"$f":"Q88","v":0},"^^^",{"$f":"G89","v":0},{"$f":"Q89","v":0},"^^^",{"$f":"I92","v":0},{"$f":"W92","v":0},"^^^",{"$f":"I94","v":0},{"$f":"I95","v":0},{"$f":"I96","v":0},{"$f":"W96","v":0},"^^^",{"$f":"I101","v":0},{"$f":"W101","v":0},"^^^",{"$f":"I103","v":0},{"$f":"I104","v":0},{"$f":"I105","v":0},{"$f":"W105","v":0},"^^^",null,null,null,null,null,null,null,null,null,null,null,null,null,null,null,null,null,null,null,null,null,null,null,null,null,null,null,null,null,null,null,null,null,null,null,null,null,null,null,null,null,null,null,null,null,null,null,null,null,null,null,"^^^","^^^",{"$f":"J111","v":0},{"$f":"J112","v":"00:00:00"},"^^^",{"$f":"P113","v":0},{"$f":"P114","v":0},{"$f":"J115","v":0},"^^^",{"$f":"P116","v":0},{"$f":"P117","v":0},"^^^",{"$f":"AA111","v":0},{"$f":"AA112","v":0},{"$f":"AA113","v":0},"^^^",{"$f":"C126","v":1},{"$f":"D126","v":0},{"$f":"I126","v":0},{"$f":"P126","v":0},{"$f":"W126","v":0},{"$f":"Z126","v":0},{"$f":"AB126","v":0},{"$f":"C127","v":2},{"$f":"D127","v":0},{"$f":"I127","v":0},{"$f":"P127","v":0},{"$f":"W127","v":0},{"$f":"Z127","v":0},{"$f":"AB127","v":0},{"$f":"C128","v":3},{"$f":"D128","v":0},{"$f":"I128","v":0},{"$f":"P128","v":0},{"$f":"W128","v":0},{"$f":"Z128","v":0},{"$f":"AB128","v":0},{"$f":"C129","v":4},{"$f":"D129","v":0},{"$f":"I129","v":0},{"$f":"P129","v":0},{"$f":"W129","v":0},{"$f":"Z129","v":0},{"$f":"AB129","v":0},{"$f":"C130","v":5},{"$f":"D130","v":0},{"$f":"I130","v":0},{"$f":"P130","v":0},{"$f":"W130","v":0},{"$f":"Z130","v":0},{"$f":"AB130","v":0},{"$f":"C131","v":6},{"$f":"D131","v":0},{"$f":"I131","v":0},{"$f":"P131","v":0},{"$f":"W131","v":0},{"$f":"Z131","v":0},{"$f":"AB131","v":0},{"$f":"C132","v":7},{"$f":"D132","v":0},{"$f":"I132","v":0},{"$f":"P132","v":0},{"$f":"W132","v":0},{"$f":"Z132","v":0},{"$f":"AB132","v":0},{"$f":"C133","v":8},{"$f":"D133","v":0},{"$f":"I133","v":0},{"$f":"P133","v":0},{"$f":"W133","v":0},{"$f":"Z133","v":0},{"$f":"AB133","v":0},{"$f":"C134","v":9},{"$f":"D134","v":0},{"$f":"I134","v":0},{"$f":"P134","v":0},{"$f":"W134","v":0},{"$f":"Z134","v":0},{"$f":"AB134","v":0},{"$f":"C135","v":10},{"$f":"D135","v":0},{"$f":"I135","v":0},{"$f":"P135","v":0},{"$f":"W135","v":0},{"$f":"Z135","v":0},{"$f":"AB135","v":0},{"$f":"C136","v":11},{"$f":"D136","v":0},{"$f":"I136","v":0},{"$f":"P136","v":0},{"$f":"W136","v":0},{"$f":"Z136","v":0},{"$f":"AB136","v":0},{"$f":"C137","v":12},{"$f":"D137","v":0},{"$f":"I137","v":0},{"$f":"P137","v":0},{"$f":"W137","v":0},{"$f":"Z137","v":0},{"$f":"AB137","v":0},{"$f":"C138","v":13},{"$f":"D138","v":0},{"$f":"I138","v":0},{"$f":"P138","v":0},{"$f":"W138","v":0},{"$f":"Z138","v":0},{"$f":"AB138","v":0},{"$f":"C139","v":14},{"$f":"D139","v":0},{"$f":"I139","v":0},{"$f":"P139","v":0},{"$f":"W139","v":0},{"$f":"Z139","v":0},{"$f":"AB139","v":0},{"$f":"C140","v":15},{"$f":"D140","v":0},{"$f":"I140","v":0},{"$f":"P140","v":0},{"$f":"W140","v":0},{"$f":"Z140","v":0},{"$f":"AB140","v":0},"^^^",{"$f":"C146","v":1},{"$f":"D146","v":0},{"$f":"O146","v":0},{"$f":"Z146","v":0},{"$f":"AB146","v":0},{"$f":"C147","v":2},{"$f":"D147","v":0},{"$f":"O147","v":0},{"$f":"Z147","v":0},{"$f":"AB147","v":0},{"$f":"C148","v":3},{"$f":"D148","v":0},{"$f":"O148","v":0},{"$f":"Z148","v":0},{"$f":"AB148","v":0},{"$f":"C149","v":4},{"$f":"D149","v":0},{"$f":"O149","v":0},{"$f":"Z149","v":0},{"$f":"AB149","v":0},{"$f":"C150","v":5},{"$f":"D150","v":0},{"$f":"O150","v":0},{"$f":"Z150","v":0},{"$f":"AB150","v":0},{"$f":"I154","v":"BAPA"},{"$f":"I157","v":0},{"$f":"I158","v":0},{"$f":"I159","v":0},{"$f":"I160","v":0},{"$f":"I161","v":0},{"$f":"I162","v":0},{"$f":"I163","v":0},{"$f":"I164","v":0},{"$f":"I165","v":0},null,null,null,null,null,null,null,null,null,"^^^",{"$f":"I166","v":0},{"$f":"I167","v":0},{"$f":"I168","v":0},{"$f":"I169","v":0},{"$f":"I170","v":0},{"$f":"P154","v":"IBU"},{"$f":"P157","v":0},{"$f":"P158","v":0},{"$f":"P159","v":0},{"$f":"P160","v":0},{"$f":"P161","v":0},{"$f":"P162","v":0},{"$f":"P163","v":0},{"$f":"P164","v":0},{"$f":"P165","v":0},"^^^",null,null,null,null,null,null,null,null,"^^^",{"$f":"P166","v":0},{"$f":"P167","v":0},{"$f":"P168","v":0},{"$f":"P169","v":0},{"$f":"P170","v":0},{"$f":"W156","v":0},{"$f":"W157","v":0},{"$f":"W158","v":0},{"$f":"W159","v":0},{"$f":"W160","v":0},{"$f":"W161","v":0},{"$f":"W162","v":0},{"$f":"W163","v":0},{"$f":"W164","v":0},{"$f":"W165","v":0},"^^^",null,null,null,null,null,null,null,null,"^^^",{"$f":"W166","v":0},{"$f":"W167","v":0},{"$f":"W168","v":0},{"$f":"W169","v":0},{"$f":"W170","v":0},"^^^",null,null,null,null,null,null,null,null,null,null,null,null,null,null,null,null,null,null,null,null,null,null,null,null,null,null,null,null,null,null,null,null,null,null,null,null,null,null,null,null,null,null,"^^^",{"$f":"C175","v":1},{"$f":"E175","v":0},{"$f":"K175","v":0},{"$f":"N175","v":0},{"$f":"R175","v":0},{"$f":"W175","v":0},{"$f":"C176","v":2},{"$f":"E176","v":0},{"$f":"K176","v":0},{"$f":"N176","v":0},{"$f":"R176","v":0},{"$f":"W176","v":0},{"$f":"C177","v":3},{"$f":"E177","v":0},{"$f":"K177","v":0},{"$f":"N177","v":0},{"$f":"R177","v":0},{"$f":"W177","v":0},{"$f":"C178","v":4},{"$f":"E178","v":0},{"$f":"K178","v":0},{"$f":"N178","v":0},{"$f":"R178","v":0},{"$f":"W178","v":0},{"$f":"C179","v":5},{"$f":"E179","v":0},{"$f":"K179","v":0},{"$f":"N179","v":0},{"$f":"R179","v":0},{"$f":"W179","v":0},{"$f":"C180","v":6},{"$f":"E180","v":0},{"$f":"K180","v":0},{"$f":"N180","v":0},{"$f":"R180","v":0},{"$f":"W180","v":0},{"$f":"C181","v":7},{"$f":"E181","v":0},{"$f":"K181","v":0},{"$f":"N181","v":0},{"$f":"R181","v":0},{"$f":"W181","v":0},{"$f":"C182","v":8},{"$f":"E182","v":0},{"$f":"K182","v":0},{"$f":"N182","v":0},{"$f":"R182","v":0},{"$f":"W182","v":0},{"$f":"C183","v":9},{"$f":"E183","v":0},{"$f":"K183","v":0},{"$f":"N183","v":0},{"$f":"R183","v":0},{"$f":"W183","v":0},null,null,null,null,null,null,"^^^",null,null,null,null,null,null,null,null,null,null,null,null,null,null,null,null,null,null,null,null,null,null,null,null,null,null,null,null,null,null,null,null,null,null,null,null,null,null,null,null,null,null,{"$f":"K188","v":0},{"$f":"K189","v":0},null,"xxx",null,"yyy",null,null,"03.12.1970",0,null,"Ya","Cosmopolitan College of Commerce and Technology (CCCT)\nART 1\n20.3.2020-20.3.2021","Cosmopolitan College of Commerce and Technology (CCCT)\nART 1\n20.3.2020-20.3.2021","Ya","I1\nK1\nTMP1-TMP2","I1\nK1\nTMP1-TMP2","Ya","Diterima","2020\nI2\nK2\nTMP1-TMP2","Lulus","I2\nK2\nTMP1-TMP2","01.1982","06.2016","02.1983","07.2017","03.1984","08.2018","04.1985","09.2019","05.1986","10.2020","1\n2\n3\n4\n5","J1\nJ2\nJ3\nJ4\nJ5","1\n2\n3\n4\n5","1982\n1983\n1984\n1985\n1986","6\n7\n8\n9\n10","2016\n2017\n2018\n2019\n2020","01.1982\n02.1983\n03.1984\n04.1985\n05.1986","06.2016\n07.2017\n08.2018\n09.2019\n10.2020","1.2020","1.2020","1.2020","01.2020","01.2020","01.2020","01.2020","01.2020","01.2020","01.2020","01.2020","01.2020","01.2020","01.2020","01.2020","MP1\nMP2\nMP3\nMP4\nMP5\nMP6\nMP7\nMP8\nMP9\nMP10\nMP11\nMP12\nMP13\nMP14\nMP15","C\nC\nC\nC\nC\nC\nC\nC\nC\nC\nC\nC\nC\nC\nC","1\n1\n1\n1\n1\n1\n1\n1\n1\n1\n1\n1\n1\n1\n1","2020\n2020\n2020\n2020\n2020\n2020\n2020\n2020\n2020\n2020\n2020\n2020\n2020\n2020\n2020","1.2020\n1.2020\n1.2020\n01.2020\n01.2020\n01.2020\n01.2020\n01.2020\n01.2020\n01.2020\n01.2020\n01.2020\n01.2020\n01.2020\n01.2020","01.2021","02.2021","03.2021","04.2021","05.2021","SP1\nSP2\nSP3\nSP4\nSP5","K1\nK2\nK3\nK4\nK5","1\n2\n3\n4\n5","2021\n2021\n2021\n2021\n2021","01.2021\n02.2021\n03.2021\n04.2021\n05.2021","BAPA\nNB\nKPB WB\nPB\nGB","IBU\nNI\nKPI WI\nPI\nGI","0\nNP\nKPP WP\nPP\nGP",{"$error":"#VALUE!"},"1\n2\n3\n4","Miftahun Najaah\nJAPEM\nMUIB\nYAYASAN","0\n0\n0\n0","0\n0\n0\n0",0,"","","","","","","1\n2\n3\n4\n5\n5\n5\n6\n7\n8","Sewa Rumah\nBayaran Pinjaman Perumahan\nBayaran Pinjaman Kenderaan (bagi sebuah kenderaan sahaja)\nPersekolahan\nElektrik\nAir\nTelefon\nPerbelanjaan bulanan (dapur, minyak kenderaan dan sebagainya)\nLain-lain (Nyatakan)\nHutang peribadi","0\n0\n0\n0\n0\n0\n0\n0\n0\n0",0]
[null,null,null,null,null,null,null,null,null,null,null,null,null,null,null,null,null,null,null,null,null,null,null,null,null,null,null,null,null,null,null,1]
[null,null,null,null,null,null,null,null,null,null,null,null,null,null,null,null,null,null,null,null,null,null,null,null,null,null,null,null,null,null,null,"xxx"]
[null,null,null,null,null,null,null,null,null,null,null,null,null,null,null,null,null,null,null,null,null,null,null,null,null,null,null,null,null,null,null,1,2,3,4,5,6,7,8,9,10,11,12,13,14,15,16,17,18,19,20,21,22,23,24,25,26,27,28,29,30,31,32,33,34,35,36,37,38,39,40,41,42,43,44,45,46,47,48,49,50,51,52,53,54,55,56,57,58,59,60,61,62,63,64,65,66,67,68,69,70,71,72,73,74,75,76,77,78,79,80,81,82,83,84,85,86,87,88,89,90,91,92,93,94,95,96,97,98,99,100,101,102,103,104,105,106,107,108,109,110,111,112,113,114,115,116,117,118,119,120,121,122,123,124,125,126,127,128,129,130,131,132,133,134,135,136,137,138,139,140,141,142,143,144,145,146,147,148,149,150,151,152,153,154,155,156,157,158,159,160,161,162,163,164,165,166,167,168,169,170,171,172,173,174,175,176,177,178,179,180,181,182,183,184,185,186,187,188,189,190,191,192,193,194,195,196,197,198,199,200,201,202,203,204,205,206,207,208,209,210,211,212,213,214,215,216,217,218,219,220,221,222,223,224,225,226,227,228,229,230,231,232,233,234,235,236,237,238,239,240,241,242,243,244,245,246,247,248,249,250,251,252,253,254,255,256,257,258,259,260,261,262,263,264,265,266,267,268,269,270,271,272,273,274,275,276,277,278,279,280,281,282,283,284,285,286,287,288,289,290,291,292,293,294,295,296,297,298,299,300,301,302,303,304,305,306,307,308,309,310,311,312,313,314,315,316,317,318,319,320,321,322,323,324,325,326,327,328,329,330,331,332,333,334,335,336,337,338,339,340,341,342,343,344,345,346,347,348,349,350,351,352,353,354,355,356,357,358,359,360,361,362,363,364,365,366,367,368,369,370,371,372,373,374,375,376,377,378,379,380,381,382,383,384,385,386,387,388,389,390,391,392,393,394,395,396,397,398,399,400,401,402,403,404,405,406,407,408,409,410,411,412,413,414,415,416,417,418,419,420,421,422,423,424,425,426,427,428,429,430,431,432,433,434,435,436,437,438,439,440,441,442,443,444,445,446,447,448,449,450,451,452,453,454,455,456,457,458,459,460,461,462,463,464,465,466,467,468,469,470,471,472,473,"xxx"]
[]
[]
[]
[null,null,"BORANG PERMOHONAN "]
[null,null,"SKIM PENDIDIKAN DAN LATIHAN TEKNIKAL DAN VOKASIONAL (TVET)"]
[null,null,"DI INSTITUSI PENGAJIAN SWASTA DALAM NEGERI"]
[]
[null,null,null,null,null,null,null,null,null,null,"SESI:","SEPTEMBER / OKTOBER 2024"]
[]
[]
[null,null,"1.  MAKLUMAT PERIBADI",null,null,null,null,null,null,null,null,null,null,null,null,null,null,null,null,null,null,null,null,null,null,null,null,null,null,null,"2\n1"]
[null,null,"Nama Pemohon\n[Mengikut Kad Pintar]",null,null,null,null,null,null,null,null,null,null,null,null,null,null,null,null,null,null,null,null,null,null,null,null,null,null,null,"3\n2\n1"]
[null,null,"Nombor Kad Pintar ",null,null,null,null,null,null,null,null,null,null,null,null,null,null,null,null,"Warna ",null,null,null,null,null,null,null,null,null,null,"2\n1"]
[null,null,"Tarikh Lahir ",null,null,null,null,"Hari",null,null,null,"Bulan",null,null,null,"Tahun",null,null,null,null,null,null,null,null,null,null,null,null,null,null,"2\n1"]
[null,null,"Bangsa\n[Seperti dalam Kad Pintar]",null,null,null,null,null,null,null,null,null,null,"Jantina ",null,null,null,null,null,"Ugama ",null,null,null,null,null,null,null,null,null,null,"2\n1"]
[null,null,"Sila tandakan (✓) pada petak yang berkaitan",null,null,null,null,null,null,null,null,null,null,null,null,null,null,null,null,null,null,null,null,null,null,null,null,null,null,null,"2\n1"]
[null,null,"Taraf Kelamin",null,null,null,null,null,"Bujang",null,null,null,"Kahwin",null,null,null,"Bercerai",null,null,null,"Duda",null,null,null,"Balu",null,null,null,null,null,"2\n1"]
[null,null,"Alamat Tempat Tinggal",null,null,null,null,null,null,null,null,null,null,null,null,null,null,null,null,null,null,null,null,null,null,null,null,null,null,null,"3\n2\n1"]
[null,null,"Poskod",null,null,null,null,null,null,null,null,null,null,null,null,null,null,null,null,null,null,null,null,null,null,null,null,null,null,null,"2\n1"]
[null,null,"Nombor Telefon",null,null,null,null,null,"Rumah",null,null,null,null,null,null,null,null,null,null,null,null,null,null,null,null,null,null,null,null,null,"2\n1"]
[null,null,null,null,null,null,null,null,"Pejabat",null,null,null,null,null,null,null,null,null,null,null,null,null,null,null,null,null,null,null,null,null,"2\n1"]
[null,null,null,null,null,null,null,null,"Bimbit",null,null,null,null,null,null,null,null,null,null,null,null,null,null,null,null,null,null,null,null,null,"2\n1"]
[null,null,"Emel",null,null,null,null,null,null,null,null,null,null,null,null,null,null,null,null,null,null,null,null,null,null,null,null,null,null,null,"2\n1"]
[]
[null,null,"2.  KURSUS YANG DIPOHON/ DIIKUTI",null,null,null,null,null,null,null,null,null,null,null,null,null,null,null,null,null,null,null,null,null,null,null,null,null,null,null,"2\n1",null,null,null,null,null,null,null,null,null,null,null,"Kolej Pengajian Siswazah Antarabangsa KIGS","Laksamana College of Business LCB","Cosmopolitan College of Commerce and Technology CCCT",null,"Kemuda Institute KI","Mahakarya Institute of the Arts Asia","HADtech College"]
[null,null,"PILIHAN KURSUS SEPERTI DALAM IKLAN MENGIKUT KEUTAMAAN",null,null,null,null,null,null,null,null,null,null,null,null,null,null,null,null,null,null,null,null,null,null,null,null,null,null,null,"2\n1",null,null,null,null,null,null,null,null,null,null,null,"HNTec in Construction and Draughting (Dual TVET)","C&G Level 3 Advanced Diploma in Culinary Arts and Supervision","NTEC in Hotel & Business Tourisms"]
[null,null,"Pilihan",null,null,null,"Nama Institusi",null,null,null,null,null,null,null,null,null,"Nama Kursus",null,null,null,null,null,null,null,null,null,null,null,null,null,"2\n1",null,null,null,null,null,null,null,null,null,null,null,null,"C&G Level 2 Diploma in Food Preparation and Culinary Arts","HNTec in Tourisms Operation"]
[null,null,"Pertama",null,null,null,null,null,null,null,null,null,null,null,null,null,null,null,null,null,null,null,null,null,null,null,null,null,null,null,"2\n1",null,null,null,null,null,null,null,null,null,null,null,null,"C&G Level 2 Diploma in Food Preparation and Culinary Arts – Patisserie"]
[null,null,"Kedua",null,null,null,null,null,null,null,null,null,null,null,null,null,null,null,null,null,null,null,null,null,null,null,null,null,null,null,"2\n1",null,null,null,null,null,null,null,null,null,null,null,null,"C&G Level 2 Diploma in Food and Beverage Service"]
[]
[null,null,"A.  Adakah Awda Sedang Menuntut Di Institusi Pengajian Swasta Secara Persendirian?"]
[null,null,"Ya",null,null,null,null,null,null,null,null,null,null,null,null,null,"Tidak"]
[null,null,"Jika Ya, Sila Isikan Ruangan Kosong Di Bawah:"]
[null,null,"Nama Institusi",null,null,null,null,null,null,null,null,null,null,null,null,null,null,null,null,null,null,null,null,null,null,null,null,null,null,null,"2\n1"]
[null,null,"Nama Kursus ",null,null,null,null,null,null,null,null,null,null,null,null,null,null,null,null,null,null,null,null,null,null,null,null,null,null,null,"2\n1"]
[null,null,"Tarikh Mula Pengajian ",null,null,null,null,null,null,null,null,null,null,null,null,"Tarikh Tamat Pengajian ",null,null,null,null,null,null,null,null,null,null,null,null,null,null,"2\n1"]
[null,null,"Nota: Sila lampirkan surat tawaran atau surat pengesahan daripada institusi"]
[]
[null,null,"B.  Adakah Awda Sedang Menuntut Di Institusi Kerajaan Pada Masa Ini? "]
[null,null,"    (Institut Pendidikan Teknikal Brunei (IBTE) atau Pusat Tingkatan Enam Kerajaan)"]
[null,null,"Ya",null,null,null,null,null,null,null,null,null,null,null,null,"Tidak"]
[null,null,"Jika Ya, Sila Isikan Ruangan Kosong Di Bawah:"]
[null,null,"Nama Institusi",null,null,null,null,null,null,null,null,null,null,null,null,null,null,null,null,null,null,null,null,null,null,null,null,null,null,null,"2\n1"]
[null,null,"Nama Kursus ",null,null,null,null,null,null,null,null,null,null,null,null,null,null,null,null,null,null,null,null,null,null,null,null,null,null,null,"2\n1"]
[null,null,"Tarikh Mula Pengajian ",null,null,null,null,null,null,null,null,null,null,null,null,"Tarikh Tamat Pengajian ",null,null,null,null,null,null,null,null,null,null,null,null,null,null,"2\n1"]
[null,null,"Nota: Sila lampirkan surat tawaran atau surat pengesahan daripada institusi"]
[]
[null,null,"C.  Adakah Awda Sedang Bekerja Pada Masa Ini? (Jika Berkenaan) "]
[]
[null,null,"Jika Ya, Sila Isikan Di Bawah:",null,null,null,null,null,null,null,null,null,null,null,null,null,null,"Jika Tidak, Sila (✓):"]
[null,null,"a) Nama Jawatan Sekarang:",null,null,null,null,null,null,null,null,null,null,null,null,null,null,"a) Adakah Awda Sedang Cuti Tanpa Gaji?",null,null,null,null,null,null,null,null,null,null,null,null,"2\n1"]
[null,null,"b) Tarikh Mula Bekerja:",null,null,null,null,null,null,null,null,null,null,null,null,null,null,"b) Adakah Awda Cuti Secara Bergaji?",null,null,null,null,null,null,null,null,null,null,null,null,"2\n1"]
[null,null,"c) Tempoh Pekerjaan:",null,null,null,null,null,null,"i. Kurang Dari 1 Tahun:",null,null,null,null,null,null,null,"c) Tidak Mempunyai Sebarang Pekerjaan?"]
[null,null,"Sila tandakan (✓)",null,null,null,null,null,null,"ii.Lebih Dari 1 Tahun:"]
[null,null,"d) Tempat Bekerja:",null,null,null,null,null,null,null,null,null,null,null,null,null,null,null,null,null,null,null,null,null,null,null,null,null,null,null,"2\n1"]
[null,null,"e) Status Pekerjaan:",null,null,null,null,null,null,"i.  Sepenuh Masa:"]
[null,null,"Sila tandakan (✓)",null,null,null,null,null,null,"ii. Separuh Masa:"]
[]
[null,null,"3. PENCAPAIAN AKADEMIK"]
[]
[null,null,"Brunei-Cambridge GCE 'O' Level / IGCSE"]
[]
[null,null,"Bil","Nama Sekolah",null,null,null,null,"Nama Peperiksaan",null,null,null,null,null,null,"Mata pelajaran",null,null,null,null,null,null,"Gred",null,null,"Tarikh Diperolehi"]
[]
[null,null,null,null,null,null,null,null,null,null,null,null,null,null,null,null,null,null,null,null,null,null,null,null,null,"Bulan",null,"Tahun"]
[null,null,1,null,null,null,null,null,null,null,null,null,null,null,null,null,null,null,null,null,null,null,null,null,null,null,null,null,null,null,"2\n1"]
[null,null,2,null,null,null,null,null,null,null,null,null,null,null,null,null,null,null,null,null,null,null,null,null,null,null,null,null,null,null,"2\n1"]
[null,null,3,null,null,null,null,null,null,null,null,null,null,null,null,null,null,null,null,null,null,null,null,null,null,null,null,null,null,null,"2\n1"]
[null,null,4,null,null,null,null,null,null,null,null,null,null,null,null,null,null,null,null,null,null,null,null,null,null,null,null,null,null,null,"2\n1"]
[null,null,5,null,null,null,null,null,null,null,null,null,null,null,null,null,null,null,null,null,null,null,null,null,null,null,null,null,null,null,"2\n1"]
[null,null,6,null,null,null,null,null,null,null,null,null,null,null,null,null,null,null,null,null,null,null,null,null,null,null,null,null,null,null,"2\n1"]
[null,null,7,null,null,null,null,null,null,null,null,null,null,null,null,null,null,null,null,null,null,null,null,null,null,null,null,null,null,null,"2\n1"]
[null,null,8,null,null,null,null,null,null,null,null,null,null,null,null,null,null,null,null,null,null,null,null,null,null,null,null,null,null,null,"2\n1"]
[null,null,9,null,null,null,null,null,null,null,null,null,null,null,null,null,null,null,null,null,null,null,null,null,null,null,null,null,null,null,"2\n1"]
[null,null,10,null,null,null,null,null,null,null,null,null,null,null,null,null,null,null,null,null,null,null,null,null,null,null,null,null,null,null,"2\n1"]
[null,null,11,null,null,null,null,null,null,null,null,null,null,null,null,null,null,null,null,null,null,null,null,null,null,null,null,null,null,null,"2\n1"]
[null,null,12,null,null,null,null,null,null,null,null,null,null,null,null,null,null,null,null,null,null,null,null,null,null,null,null,null,null,null,"2\n1"]
[null,null,13,null,null,null,null,null,null,null,null,null,null,null,null,null,null,null,null,null,null,null,null,null,null,null,null,null,null,null,"2\n1"]
[null,null,14,null,null,null,null,null,null,null,null,null,null,null,null,null,null,null,null,null,null,null,null,null,null,null,null,null,null,null,"2\n1"]
[null,null,15,null,null,null,null,null,null,null,null,null,null,null,null,null,null,null,null,null,null,null,null,null,null,null,null,null,null,null,"2\n1"]
[]
[null,null,"Diploma / Lain-Lain Sijil Kelayakan atau Kelulusan (jika ada)"]
[]
[null,null,"Bil","Sijil Diperolehi",null,null,null,null,null,null,null,null,null,null,"Keputusan",null,null,null,null,null,null,null,null,null,null,"Tarikh Diperolehi",null,null,null,null,"2\n1"]
[null,null,null,null,null,null,null,null,null,null,null,null,null,null,null,null,null,null,null,null,null,null,null,null,null,"Bulan",null,"Tahun"]
[null,null,1,null,null,null,null,null,null,null,null,null,null,null,null,null,null,null,null,null,null,null,null,null,null,null,null,null,null,null,"2\n1"]
[null,null,2,null,null,null,null,null,null,null,null,null,null,null,null,null,null,null,null,null,null,null,null,null,null,null,null,null,null,null,"2\n1"]
[null,null,3,null,null,null,null,null,null,null,null,null,null,null,null,null,null,null,null,null,null,null,null,null,null,null,null,null,null,null,"2\n1"]
[null,null,4,null,null,null,null,null,null,null,null,null,null,null,null,null,null,null,null,null,null,null,null,null,null,null,null,null,null,null,"2\n1"]
[null,null,5,null,null,null,null,null,null,null,null,null,null,null,null,null,null,null,null,null,null,null,null,null,null,null,null,null,null,null,"2\n1"]
[]
[null,null,"4. KETERANGAN IBU BAPA / PENJAGA / SUAMI / ISTERI"]
[]
[null,null,null,null,null,null,null,null,"BAPA",null,null,null,null,null,null,"IBU",null,null,null,null,null,null,"PENJAGA / SUAMI / ISTERI"]
[null,null,null,null,null,null,null,null,null,null,null,null,null,null,null,null,null,null,null,null,null,null,"Hubungan dengan pemohon :"]
[null,null,null,null,null,null,null,null,null,null,null,null,null,null,null,null,null,null,null,null,null,null,null,null,null,null,null,null,null,null,"2\n1"]
[null,null,"Nama",null,null,null,null,null,null,null,null,null,null,null,null,null,null,null,null,null,null,null,null,null,null,null,null,null,null,null,"3\n2\n1","n"]
[null,null,"Nombor Kad Pintar",null,null,null,null,null,null,null,null,null,null,null,null,null,null,null,null,null,null,null,null,null,null,null,null,null,null,null,"2\n1","kp"]
[null,null,"Warna/Jenis Kad Pintar",null,null,null,null,null,null,null,null,null,null,null,null,null,null,null,null,null,null,null,null,null,null,null,null,null,null,null,"2\n1","kpk"]
[null,null,"Alamat Tempat Tinggal (sewa persendirian / kerajaan atau keluarga)",null,null,null,null,null,null,null,null,null,null,null,null,null,null,null,null,null,null,null,null,null,null,null,null,null,null,null,"3\n2\n1","att"]
[null,null,"Pekerjaan",null,null,null,null,null,null,null,null,null,null,null,null,null,null,null,null,null,null,null,null,null,null,null,null,null,null,null,"2\n1","k"]
[null,null,"Alamat Pejabat",null,null,null,null,null,null,null,null,null,null,null,null,null,null,null,null,null,null,null,null,null,null,null,null,null,null,null,"3\n2\n1","ak"]
[null,null,"Nama Majikan",null,null,null,null,null,null,null,null,null,null,null,null,null,null,null,null,null,null,null,null,null,null,null,null,null,null,null,"3\n2\n1","nm"]
[null,null,"Gaji (bulanan)",null,null,null,null,null,null,null,null,null,null,null,null,null,null,null,null,null,null,null,null,null,null,null,null,null,null,null,"2\n1","g"]
[null,null,"Pendapatan lain (sewa rumah / pemberian nafkah / perniagaan dll)",null,null,null,null,null,null,null,null,null,null,null,null,null,null,null,null,null,null,null,null,null,null,null,null,null,null,null,"3\n2\n1","pl"]
[null,null,"Nombor Telefon",null,null,"Rumah",null,null,null,null,null,null,null,null,null,null,null,null,null,null,null,null,null,null,null,null,null,null,null,null,"2\n1","tr"]
[null,null,null,null,null,"Bimbit",null,null,null,null,null,null,null,null,null,null,null,null,null,null,null,null,null,null,null,null,null,null,null,null,"2\n1","tb"]
[null,null,null,null,null,"Pejabat",null,null,null,null,null,null,null,null,null,null,null,null,null,null,null,null,null,null,null,null,null,null,null,null,"2\n1","tp"]
[null,null,null,null,null,"E-mel",null,null,null,null,null,null,null,null,null,null,null,null,null,null,null,null,null,null,null,null,null,null,null,null,"2\n1","e"]
[null,null,"Tahun Meninggal\n(jika berkenaan)",null,null,null,null,null,null,null,null,null,null,null,null,null,null,null,null,null,null,null,null,null,null,null,null,null,null,null,"2\n1","tm"]
[]
[null,null,"5. KETERANGAN TANGGUNGAN IBU BAPA / PENJAGA PEMOHON",null,null,null,null,null,null,null,null,null,null,null,null,null,null,null,null,null,null,null,null,null,null,null,null,null,null,null,"2\n1"]
[null,null,"Tanggungan (termasuk anak angkat, bapa, ibu, abang, kakak dan adik (kandung/tiri)",null,null,null,null,null,null,null,null,null,null,null,null,null,null,null,null,null,null,null,null,null,null,null,null,null,null,null,"2\n1"]
[null,null,"BIL",null,"NAMA",null,null,null,null,null,"TARIKH LAHIR",null,null,"HUBUNGAN",null,null,null,"MASIH BERSEKOLAH / SUDAH BEKERJA",null,null,null,null,"NAMA SEKOLAH / TEMPAT BEKERJA",null,null,null,null,null,null,null,"2\n1"]
[null,null,1,null,null,null,null,null,null,null,null,null,null,null,null,null,null,null,null,null,null,null,null,null,null,null,null,null,null,null,"2\n1"]
[null,null,2,null,null,null,null,null,null,null,null,null,null,null,null,null,null,null,null,null,null,null,null,null,null,null,null,null,null,null,"2\n1"]
[null,null,3,null,null,null,null,null,null,null,null,null,null,null,null,null,null,null,null,null,null,null,null,null,null,null,null,null,null,null,"2\n1"]
[null,null,4,null,null,null,null,null,null,null,null,null,null,null,null,null,null,null,null,null,null,null,null,null,null,null,null,null,null,null,"2\n1"]
[null,null,5,null,null,null,null,null,null,null,null,null,null,null,null,null,null,null,null,null,null,null,null,null,null,null,null,null,null,null,"2\n1"]
[null,null,6,null,null,null,null,null,null,null,null,null,null,null,null,null,null,null,null,null,null,null,null,null,null,null,null,null,null,null,"2\n1"]
[null,null,7,null,null,null,null,null,null,null,null,null,null,null,null,null,null,null,null,null,null,null,null,null,null,null,null,null,null,null,"2\n1"]
[null,null,8,null,null,null,null,null,null,null,null,null,null,null,null,null,null,null,null,null,null,null,null,null,null,null,null,null,null,null,"2\n1"]
[null,null,9,null,null,null,null,null,null,null,null,null,null,null,null,null,null,null,null,null,null,null,null,null,null,null,null,null,null,null,"2\n1"]
[]
[]
[null,null,"6. PENGAKUAN",null,null,null,null,null,null,null,null,null,null,null,null,null,null,null,null,null,null,null,null,null,null,null,null,null,null,null,"2\n1"]
[null,null,"Saya mengaku bahawa segala maklumat yang diberikan di atas adalah benar dan saya faham bahawa jika ada keterangan dan salinan sijil-sijil dan Surat Akuan yang saya kemukakan tidak betul atau tidak benar, maka Kementerian Pendidikan berhak menolak permohonan ini.\n\nBersama ini juga disertakan salinan Surat Beranak, Kad Pintar, Sijil-Sijil Peperiksaan dan Surat Tawaran Tempat Kursus.",null,null,null,null,null,null,null,null,null,null,null,null,null,null,null,null,null,null,null,null,null,null,null,null,null,null,null,"6\n5\n4\n3\n2\n1\n"]
[null,null,"Tandatangan Pemohon :",null,null,null,null,null,null,null,null,null,null,null,null,null,null,null,null,null,null,null,null,null,null,null,null,null,null,null,"2\n1"]
[null,null,"Tarikh :",null,null,null,null,null,null,null,null,null,null,null,null,null,null,null,null,null,null,null,null,null,null,null,null,null,null,null,"2\n1"]
[]
[]
[null,null,"7. PENGESAHAN KETUA KAMPUNG",null,null,null,null,null,null,null,null,null,null,null,null,null,null,null,null,null,null,null,null,null,null,null,null,null,null,null,"2\n1"]
[null,null,"Saya dengan ini mengaku dan mengesahkan bahawa segala maklumat yang diberikan oleh pemohon adalah benar sejauh mana yang saya ketahui.",null,null,null,null,null,null,null,null,null,null,null,null,null,null,null,null,null,null,null,null,null,null,null,null,null,null,null,"3\n2\n1"]
[]
[null,null,"Tandatangan Ketua Kampung :",null,null,null,null,null,null,null,null,null,null,null,null,null,null,null,null,null,null,null,null,null,null,null,null,null,null,null,"2\n1"]
[null,null,"Nama Ketua Kampung :",null,null,null,null,null,null,null,null,null,null,null,null,null,null,null,null,null,null,null,null,null,null,null,null,null,null,null,"2\n1"]
[null,null,"Tarikh :",null,null,null,null,null,null,null,null,null,null,null,null,null,null,null,null,null,null,null,null,null,null,null,null,null,null,null,"2\n1"]
[]
[]
[null,null,"UNTUK KEGUNAAN PEJABAT/ INSTITUSI"]
[null,null,"SENARAI SEMAK SALINAN (Sila tandakan √):\nSila pastikan semua dokumen dan salinan disertakan sebelum mengembalikan Borang ini ke Bahagian Biasiswa, Kementerian Pendidikan."]
[null,null,"Bagi Pemohon :"]
[null,null,null,null,"Borang permohonan TVET (borang boleh dimuat turun dari laman web Kementerian Pendidikan, www.moe.gov.bn atau boleh didapati dari di Institusi-Institusi Swasta yang menawarkan program yang dipohonkan.",null,null,null,null,null,null,null,null,null,null,null,null,null,null,null,null,null,null,null,null,null,null,null,null,null,"3\n2\n1"]
[null,null,null,null,"Salinan sijil surat beranak",null,null,null,null,null,null,null,null,null,null,null,null,null,null,null,null,null,null,null,null,null,null,null,null,null,"2\n1"]
[null,null,null,null,"Salinan kad pengenalan",null,null,null,null,null,null,null,null,null,null,null,null,null,null,null,null,null,null,null,null,null,null,null,null,null,"2\n1"]
[null,null,null,null,"Sijil peringkat ‘O’ (BGCE / IGCSE)",null,null,null,null,null,null,null,null,null,null,null,null,null,null,null,null,null,null,null,null,null,null,null,null,null,"2\n1"]
[null,null,null,null,"Sijil peringkat Teknikal dan Vokasional",null,null,null,null,null,null,null,null,null,null,null,null,null,null,null,null,null,null,null,null,null,null,null,null,null,"2\n1"]
[null,null,null,null,"Salinan sijil nikah / perkahwinan (jika berkenaan)",null,null,null,null,null,null,null,null,null,null,null,null,null,null,null,null,null,null,null,null,null,null,null,null,null,"2\n1"]
[null,null,{"$f":"C42","v":"Bagi Ibu / Bapa / Penjaga / Suami / Isteri Pemohon :"}]
[null,null,null,null,"Salinan kad pengenalan pintar ibu / bapa / penjaga / suami / isteri",null,null,null,null,null,null,null,null,null,null,null,null,null,null,null,null,null,null,null,null,null,null,null,null,null,"2\n1"]
[null,null,null,null,"Salinan sijil cerai (jika berkenaan)",null,null,null,null,null,null,null,null,null,null,null,null,null,null,null,null,null,null,null,null,null,null,null,null,null,"2\n1"]
[null,null,null,null,"Salinan sijil kematian (jika berkenaan)",null,null,null,null,null,null,null,null,null,null,null,null,null,null,null,null,null,null,null,null,null,null,null,null,null,"2\n1"]
[]
[]
[null,null,"DISEMAK OLEH : (Dari pihak Institusi)",null,null,null,null,null,null,null,null,null,null,null,null,"TANDATANGAN PENYEMAK"]
[null,null,null,null,null,null,null,null,null,null,null,null,null,null,null,null,null,null,null,null,null,null,null,null,null,null,null,null,null,null,"3\n2\n1"]
[null,null,"Tarikh Disemak",null,null,null,null,null,null,null,null,null,null,null,null,null,null,null,null,null,null,null,"-",null,"-"]
[]
[null,null,"SALINAN PERMOHON"]
[]
[null,null,"PENGESAHAN PENERIMAAN BORANG PERMOHONAN SKIM TVET "]
[null,null,"Nama Pemohon",null,null,null,null,null,{"$f":"IF(ISBLANK(M72),\"\",M72)","v":""},null,null,null,null,null,null,null,null,null,null,null,null,null,null,null,null,null,null,null,null,null,"2\n1"]
[null,null,"Nombor Kad Pintar ",null,null,null,null,null,{"$f":"IF(ISBLANK(L73),\"\",L73)","v":""},null,null,null,null,null,null,null,null,null,null,null,null,null,null,null,null,null,null,null,null,null,"2\n1"]
[null,null,"Nama Kursus / Institusi yang dipohon",null,null,null,null,null,{"$f":"IF(ISBLANK(G88),\"\",\"1) \" &G88&\" @ \"&S88) &CHAR(10)&IF(ISBLANK(G89),\"\",\"2) \"&G89&\" @ \"&S89)","v":"\n"},null,null,null,null,null,null,null,null,null,null,null,null,null,null,null,null,null,null,null,null,null,"4\n3\n2\n1"]
[null,null,"Bilangan",null,null,null,null,null,{"$f":"C56&\"/\"&IF(ISBLANK(F56),\"\",F56)","v":"TVET/2024/"},null,null,null,null,null,null,null,null,null,null,null,null,null,null,null,null,null,null,null,null,null,"2\n1"]
[]
[null,null,"Ini adalah mengesahkan bahawa pihak Institusi telah menerima borang permohonan calon yang tersebut di atas pada :"]
[]
[null,null,"Tarikh borang dikembalikan ke Institusi :",null,null,null,null,null,null,null,null,null,null,null,null,"Cop Rasmi Pejabat/Institusi"]
[]
[]
[null,null,"Nama Pegawai/ Kakitangan yang menerima borang :"]